[Event "*** Titled Tuesday Blitz"]
[Site "Chess.com"]
[Date "2020.12.29"]
[Round "7"]
[White "QuintilianoR"]
[Black "Koksal06"]
[Result "1-0"]
[WhiteElo "2666"]
[BlackElo "2450"]
[TimeControl "180+1"]
[EndTime "11:15:49 PST"]
[Termination "QuintilianoR won by resignation"]

1. e4 {[%clk 0:03:00.9]} 1... c6 {[%clk 0:03:00.1]} 2. d4 {[%clk 0:03:00.6]}
2... d5 {[%clk 0:03:01]} 3. exd5 {[%clk 0:03:00.8]} 3... cxd5 {[%clk 0:03:01.9]}
4. Bd3 {[%clk 0:03:00.9]} 4... Nf6 {[%clk 0:03:02.2]} 5. c3 {[%clk 0:02:58.1]}
5... Bg4 {[%clk 0:03:01.9]} 6. Ne2 {[%clk 0:02:55.9]} 6... Nc6 {[%clk
0:03:01.6]} 7. O-O {[%clk 0:02:55.9]} 7... e6 {[%clk 0:03:01.8]} 8. f3 {[%clk
0:02:53.9]} 8... Bh5 {[%clk 0:03:01.7]} 9. Nf4 {[%clk 0:02:54.2]} 9... Bg6
{[%clk 0:03:01.3]} 10. Re1 {[%clk 0:02:51.1]} 10... Bd6 {[%clk 0:03:01]} 11. Na3
{[%clk 0:02:44.7]} 11... O-O {[%clk 0:02:54.9]} 12. Nc2 {[%clk 0:02:39.4]} 12...
Qc7 {[%clk 0:02:52.8]} 13. g3 {[%clk 0:02:37.3]} 13... Nh5 {[%clk 0:02:51.6]}
14. Nxg6 {[%clk 0:02:35.3]} 14... hxg6 {[%clk 0:02:51.6]} 15. f4 {[%clk
0:02:33]} 15... Rfe8 {[%clk 0:02:51.3]} 16. Ne3 {[%clk 0:02:30.9]} 16... f5
{[%clk 0:02:49.5]} 17. Ng2 {[%clk 0:02:17.8]} 17... Nf6 {[%clk 0:02:48.6]} 18.
Nh4 {[%clk 0:02:17.3]} 18... Qf7 {[%clk 0:02:45.5]} 19. Nf3 {[%clk 0:02:15.6]}
19... Ne4 {[%clk 0:02:45.8]} 20. a3 {[%clk 0:02:13.5]} 20... Be7 {[%clk
0:02:42.1]} 21. Bd2 {[%clk 0:01:57.8]} 21... Bf6 {[%clk 0:02:42.1]} 22. b4
{[%clk 0:01:56.8]} 22... Qc7 {[%clk 0:02:27.7]} 23. Rc1 {[%clk 0:01:54.7]} 23...
Rad8 {[%clk 0:02:23.2]} 24. Be3 {[%clk 0:01:51.3]} 24... Nd6 {[%clk 0:01:58.8]}
25. c4 {[%clk 0:01:42.9]} 25... dxc4 {[%clk 0:01:58.8]} 26. Bxc4 {[%clk
0:01:41]} 26... Nxc4 {[%clk 0:01:59]} 27. Rxc4 {[%clk 0:01:41.9]} 27... Rd5
{[%clk 0:01:58.9]} 28. Qc2 {[%clk 0:01:39.1]} 28... Qd7 {[%clk 0:01:54.5]} 29.
Rd1 {[%clk 0:01:16.4]} 29... Rd8 {[%clk 0:01:53.5]} 30. Qe2 {[%clk 0:01:12.3]}
30... a6 {[%clk 0:01:51.9]} 31. Bf2 {[%clk 0:01:11.7]} 31... Kf7 {[%clk
0:01:50.5]} 32. Kg2 {[%clk 0:01:03.3]} 32... Ne7 {[%clk 0:01:43.4]} 33. Rdc1
{[%clk 0:01:02]} 33... Rc8 {[%clk 0:01:40.3]} 34. Rxc8 {[%clk 0:00:58.7]} 34...
Nxc8 {[%clk 0:01:41.2]} 35. Rc5 {[%clk 0:00:58.5]} 35... Ne7 {[%clk 0:01:31.2]}
36. Qc4 {[%clk 0:00:55.9]} 36... Nc6 {[%clk 0:01:29.1]} 37. b5 {[%clk
0:00:54.7]} 37... axb5 {[%clk 0:01:28.3]} 38. Qxb5 {[%clk 0:00:54.7]} 38... Nxd4
{[%clk 0:01:00.3]} 39. Nxd4 {[%clk 0:00:41.2]} 39... Bxd4 {[%clk 0:00:57.1]} 40.
Rxd5 {[%clk 0:00:40.7]} 40... Qxb5 {[%clk 0:00:56.6]} 41. Rxb5 {[%clk 0:00:40]}
1-0

[Event "*** Titled Tuesday Blitz"]
[Site "Chess.com"]
[Date "2020.12.29"]
[Round "7"]
[White "chess4life23"]
[Black "stasiek18"]
[Result "0-1"]
[WhiteElo "2251"]
[BlackElo "2386"]
[TimeControl "180+1"]
[EndTime "11:15:51 PST"]
[Termination "stasiek18 won on time"]

1. d4 {[%clk 0:03:00.9]} 1... d5 {[%clk 0:02:59]} 2. c4 {[%clk 0:03:00.6]} 2...
e6 {[%clk 0:02:59.2]} 3. Nc3 {[%clk 0:03:00.6]} 3... a6 {[%clk 0:02:57.1]} 4.
cxd5 {[%clk 0:02:56.4]} 4... exd5 {[%clk 0:02:58]} 5. Nf3 {[%clk 0:02:56]} 5...
Nf6 {[%clk 0:02:58.3]} 6. Bg5 {[%clk 0:02:55.1]} 6... Be6 {[%clk 0:02:58.7]} 7.
Qb3 {[%clk 0:02:51.3]} 7... Nbd7 {[%clk 0:02:50.1]} 8. e3 {[%clk 0:02:43]} 8...
b5 {[%clk 0:02:38.6]} 9. Qc2 {[%clk 0:02:30.9]} 9... Rc8 {[%clk 0:02:33.1]} 10.
Be2 {[%clk 0:02:15]} 10... c5 {[%clk 0:02:31.3]} 11. dxc5 {[%clk 0:02:14.8]}
11... Bxc5 {[%clk 0:02:29.7]} 12. O-O {[%clk 0:01:53.6]} 12... b4 {[%clk
0:02:17.8]} 13. Na4 {[%clk 0:01:43.8]} 13... Bxe3 {[%clk 0:02:16.1]} 14. Qd1
{[%clk 0:01:22.9]} 14... Bxg5 {[%clk 0:02:12.5]} 15. Nxg5 {[%clk 0:01:23.8]}
15... Qa5 {[%clk 0:02:06.3]} 16. f4 {[%clk 0:00:38.1]} 16... Bf5 {[%clk
0:01:56.6]} 17. g4 {[%clk 0:00:20.4]} 17... Bc2 {[%clk 0:01:55.4]} 18. Qe1
{[%clk 0:00:19.1]} 18... O-O {[%clk 0:01:49.7]} 19. b3 {[%clk 0:00:19.1]} 19...
Rfe8 {[%clk 0:01:43.6]} 20. Qd2 {[%clk 0:00:10.5]} 20... Nc5 {[%clk 0:01:35.4]}
21. Bf3 {[%clk 0:00:07.6]} 21... Nxa4 {[%clk 0:01:32.2]} 22. bxa4 {[%clk
0:00:06.4]} 22... Qc5+ {[%clk 0:01:28.9]} 23. Kg2 {[%clk 0:00:06]} 23... Qc3
{[%clk 0:01:28.9]} 24. Qxc3 {[%clk 0:00:04.7]} 24... bxc3 {[%clk 0:01:28.4]} 25.
Rac1 {[%clk 0:00:04.9]} 25... Bxa4 {[%clk 0:01:27.5]} 26. Nh3 {[%clk 0:00:02]}
26... d4 {[%clk 0:01:18.1]} 27. g5 {[%clk 0:00:02]} 27... Ne4 {[%clk 0:01:18.1]}
28. Bxe4 {[%clk 0:00:02.4]} 28... Rxe4 {[%clk 0:01:17.8]} 29. Nf2 {[%clk
0:00:02.9]} 29... Re2 {[%clk 0:01:16.9]} 30. Kf3 {[%clk 0:00:01.8]} 30... Rce8
{[%clk 0:01:12.8]} 31. Nd3 {[%clk 0:00:02]} 31... R2e3+ {[%clk 0:01:09.8]} 0-1

[Event "*** Titled Tuesday Blitz"]
[Site "Chess.com"]
[Date "2020.12.29"]
[Round "7"]
[White "orestn"]
[Black "Stormeman100100"]
[Result "1-0"]
[WhiteElo "2358"]
[BlackElo "2502"]
[TimeControl "180+1"]
[EndTime "11:15:52 PST"]
[Termination "orestn won by resignation"]

1. e4 {[%clk 0:02:30.8]} 1... e5 {[%clk 0:02:56.8]} 2. Nf3 {[%clk 0:02:30.4]}
2... Nc6 {[%clk 0:02:57.2]} 3. Bb5 {[%clk 0:02:30.9]} 3... Nf6 {[%clk
0:02:54.8]} 4. O-O {[%clk 0:02:30.2]} 4... Nxe4 {[%clk 0:02:54.3]} 5. Re1 {[%clk
0:02:30.5]} 5... Nd6 {[%clk 0:02:53.1]} 6. a4 {[%clk 0:02:31]} 6... Be7 {[%clk
0:02:48.4]} 7. Nc3 {[%clk 0:02:30.2]} 7... O-O {[%clk 0:02:46]} 8. d4 {[%clk
0:02:30.4]} 8... exd4 {[%clk 0:02:43.5]} 9. Nd5 {[%clk 0:02:29.7]} 9... Bf6
{[%clk 0:02:35.2]} 10. Bf4 {[%clk 0:02:27.8]} 10... b6 {[%clk 0:01:58.8]} 11.
Bd3 {[%clk 0:02:04.7]} 11... Bb7 {[%clk 0:01:49.6]} 12. Nxf6+ {[%clk 0:02:00.6]}
12... Qxf6 {[%clk 0:01:45.7]} 13. Bg5 {[%clk 0:02:00.2]} 13... Qg6 {[%clk
0:01:35.8]} 14. Bxg6 {[%clk 0:01:59.4]} 14... fxg6 {[%clk 0:01:36.7]} 15. Bh4
{[%clk 0:01:53.6]} 15... Nf5 {[%clk 0:01:33.8]} 16. Bg3 {[%clk 0:01:52.2]} 16...
d6 {[%clk 0:01:28.9]} 17. Rc1 {[%clk 0:01:37.5]} 17... Rf7 {[%clk 0:01:27.7]}
18. c3 {[%clk 0:01:37.3]} 18... Raf8 {[%clk 0:01:23.6]} 19. Ng5 {[%clk
0:01:22.8]} 19... Rf6 {[%clk 0:01:17]} 20. Ne6 {[%clk 0:01:09.3]} 20... R8f7
{[%clk 0:01:14.4]} 21. cxd4 {[%clk 0:01:09]} 21... Nxg3 {[%clk 0:01:10.1]} 22.
fxg3 {[%clk 0:01:03.7]} 22... Rf2 {[%clk 0:01:07.8]} 23. d5 {[%clk 0:01:00.1]}
23... Ne5 {[%clk 0:00:40.8]} 24. Rxc7 {[%clk 0:00:54.4]} 24... Rxb2 {[%clk
0:00:35.9]} 25. Rxf7 {[%clk 0:00:52]} 25... Kxf7 {[%clk 0:00:32.6]} 26. Qc1
{[%clk 0:00:44.9]} 26... Ra2 {[%clk 0:00:28.4]} 27. Qc7+ {[%clk 0:00:42.4]}
27... Kf6 {[%clk 0:00:26.9]} 28. Rf1+ {[%clk 0:00:37.6]} 28... Nf3+ {[%clk
0:00:23.7]} 29. Rxf3+ {[%clk 0:00:37.3]} 29... Ke5 {[%clk 0:00:23.8]} 1-0

[Event "*** Titled Tuesday Blitz"]
[Site "Chess.com"]
[Date "2020.12.29"]
[Round "7"]
[White "Ermito2020"]
[Black "NMShanMeruga"]
[Result "0-1"]
[WhiteElo "2636"]
[BlackElo "2448"]
[TimeControl "180+1"]
[EndTime "11:15:58 PST"]
[Termination "NMShanMeruga won by resignation"]

1. e4 {[%clk 0:03:00.6]} 1... Nf6 {[%clk 0:03:00]} 2. e5 {[%clk 0:03:00.4]} 2...
Nd5 {[%clk 0:02:59.9]} 3. d4 {[%clk 0:02:59.9]} 3... d6 {[%clk 0:02:59]} 4. Nf3
{[%clk 0:03:00.4]} 4... dxe5 {[%clk 0:02:56.7]} 5. Nxe5 {[%clk 0:03:01.1]} 5...
g6 {[%clk 0:02:54.1]} 6. Be2 {[%clk 0:02:59.3]} 6... Bg7 {[%clk 0:02:52.5]} 7.
O-O {[%clk 0:02:58.8]} 7... O-O {[%clk 0:02:51.2]} 8. Nf3 {[%clk 0:02:51.5]}
8... c5 {[%clk 0:02:48.2]} 9. c4 {[%clk 0:02:46.2]} 9... Nf6 {[%clk 0:02:45]}
10. dxc5 {[%clk 0:02:43.3]} 10... Na6 {[%clk 0:02:41.6]} 11. Be3 {[%clk
0:02:32]} 11... Ne4 {[%clk 0:02:38.3]} 12. Bd4 {[%clk 0:02:28.5]} 12... Naxc5
{[%clk 0:02:33.5]} 13. Bxg7 {[%clk 0:02:01.1]} 13... Kxg7 {[%clk 0:02:34.4]} 14.
Qc1 {[%clk 0:01:57.6]} 14... Qb6 {[%clk 0:02:30.6]} 15. Nc3 {[%clk 0:01:56.2]}
15... Nxc3 {[%clk 0:02:28.6]} 16. Qxc3+ {[%clk 0:01:55.8]} 16... Qf6 {[%clk
0:02:27.4]} 17. Qxf6+ {[%clk 0:01:54.7]} 17... Kxf6 {[%clk 0:02:25]} 18. b4
{[%clk 0:01:55.6]} 18... Ne4 {[%clk 0:02:22.2]} 19. Rac1 {[%clk 0:01:54.5]}
19... a5 {[%clk 0:02:19.1]} 20. a3 {[%clk 0:01:51.3]} 20... axb4 {[%clk
0:02:17.2]} 21. axb4 {[%clk 0:01:51.2]} 21... Ra4 {[%clk 0:02:15]} 22. Bd3
{[%clk 0:01:50.8]} 22... Bf5 {[%clk 0:02:12.4]} 23. Rfe1 {[%clk 0:01:23.8]}
23... Nd2 {[%clk 0:01:45.8]} 24. Ne5 {[%clk 0:00:52.4]} 24... Bxd3 {[%clk
0:01:41.7]} 25. Nd7+ {[%clk 0:00:50.3]} 25... Kg7 {[%clk 0:01:29.5]} 26. Nxf8
{[%clk 0:00:49.5]} 26... Kxf8 {[%clk 0:01:30.4]} 27. Red1 {[%clk 0:00:49.2]}
27... Nb3 {[%clk 0:01:26.3]} 28. Rc3 {[%clk 0:00:47.2]} 28... Be2 {[%clk
0:01:23.6]} 29. Re1 {[%clk 0:00:45.6]} 29... Nd4 {[%clk 0:01:21.6]} 30. b5
{[%clk 0:00:43.3]} 30... Bxc4 {[%clk 0:01:18]} 31. b6 {[%clk 0:00:41.4]} 31...
Ne2+ {[%clk 0:01:13.5]} 32. Rxe2 {[%clk 0:00:39.3]} 32... Ra1+ {[%clk
0:01:12.5]} 0-1

[Event "*** Titled Tuesday Blitz"]
[Site "Chess.com"]
[Date "2020.12.29"]
[Round "7"]
[White "Carnivoras"]
[Black "rynos0411"]
[Result "0-1"]
[WhiteElo "2570"]
[BlackElo "2333"]
[TimeControl "180+1"]
[EndTime "11:16:01 PST"]
[Termination "rynos0411 won by resignation"]

1. d4 {[%clk 0:03:00.9]} 1... d5 {[%clk 0:02:59.1]} 2. c4 {[%clk 0:03:00.5]}
2... c6 {[%clk 0:02:59.4]} 3. Nc3 {[%clk 0:03:00.1]} 3... Nf6 {[%clk 0:02:59.6]}
4. Bg5 {[%clk 0:02:59.3]} 4... e6 {[%clk 0:02:58.2]} 5. Nf3 {[%clk 0:02:58.6]}
5... Nbd7 {[%clk 0:02:53.3]} 6. e3 {[%clk 0:02:58.3]} 6... Qa5 {[%clk
0:02:52.9]} 7. Nd2 {[%clk 0:02:57.2]} 7... Bb4 {[%clk 0:02:52.6]} 8. Qc2 {[%clk
0:02:56.8]} 8... dxc4 {[%clk 0:02:52.1]} 9. Bxf6 {[%clk 0:02:55.8]} 9... Nxf6
{[%clk 0:02:52.5]} 10. Nxc4 {[%clk 0:02:56.5]} 10... Qc7 {[%clk 0:02:53]} 11.
Bd3 {[%clk 0:02:55.7]} 11... c5 {[%clk 0:02:53.3]} 12. a3 {[%clk 0:02:53.2]}
12... Bxc3+ {[%clk 0:02:51.4]} 13. bxc3 {[%clk 0:02:53.8]} 13... b6 {[%clk
0:02:46.5]} 14. O-O {[%clk 0:02:52.5]} 14... O-O {[%clk 0:02:46.4]} 15. e4
{[%clk 0:02:52.2]} 15... Ba6 {[%clk 0:02:43.7]} 16. e5 {[%clk 0:02:51.4]} 16...
Bxc4 {[%clk 0:02:25.5]} 17. exf6 {[%clk 0:02:41.2]} 17... Bxd3 {[%clk
0:02:22.1]} 18. Qxd3 {[%clk 0:02:42.1]} 18... gxf6 {[%clk 0:02:22.2]} 19. Rfe1
{[%clk 0:02:38.3]} 19... Kh8 {[%clk 0:02:20.4]} 20. Re3 {[%clk 0:02:35.5]} 20...
Rg8 {[%clk 0:02:14]} 21. Rh3 {[%clk 0:02:31]} 21... Rg6 {[%clk 0:02:10.7]} 22.
Re1 {[%clk 0:02:28.2]} 22... Rag8 {[%clk 0:02:09.7]} 23. g3 {[%clk 0:02:27.6]}
23... cxd4 {[%clk 0:02:09.1]} 24. cxd4 {[%clk 0:02:25.7]} 24... f5 {[%clk
0:02:04.3]} 25. Rh4 {[%clk 0:02:22.9]} 25... Qd6 {[%clk 0:02:01.9]} 26. Qc3
{[%clk 0:02:03.1]} 26... R6g7 {[%clk 0:01:26.3]} 27. Re5 {[%clk 0:01:56.1]}
27... Rd8 {[%clk 0:01:24]} 28. d5 {[%clk 0:01:52]} 28... exd5 {[%clk 0:01:21.8]}
29. Rxf5 {[%clk 0:01:52.2]} 29... d4 {[%clk 0:01:22.3]} 30. Qd3 {[%clk
0:01:52.1]} 30... Qg6 {[%clk 0:01:04.9]} 31. Rhf4 {[%clk 0:01:35.6]} 31... Qe6
{[%clk 0:00:42.6]} 32. Rf6 {[%clk 0:01:10.6]} 32... Qe1+ {[%clk 0:00:40.2]} 33.
Kg2 {[%clk 0:01:10.2]} 33... Qe5 {[%clk 0:00:36.4]} 34. Rxf7 {[%clk 0:01:03.7]}
34... Qd5+ {[%clk 0:00:35.4]} 35. Qf3 {[%clk 0:01:00]} 35... Qxf3+ {[%clk
0:00:25]} 36. Rxf3 {[%clk 0:00:49.5]} 36... Rxf7 {[%clk 0:00:24.3]} 37. Rxf7
{[%clk 0:00:49.2]} 37... d3 {[%clk 0:00:24.9]} 0-1

[Event "*** Titled Tuesday Blitz"]
[Site "Chess.com"]
[Date "2020.12.29"]
[Round "7"]
[White "RobPeresian"]
[Black "annamaja"]
[Result "1-0"]
[WhiteElo "2440"]
[BlackElo "2284"]
[TimeControl "180+1"]
[EndTime "11:16:07 PST"]
[Termination "RobPeresian won by resignation"]

1. Nf3 {[%clk 0:03:00.9]} 1... Nf6 {[%clk 0:03:00.2]} 2. c4 {[%clk 0:03:00.7]}
2... e6 {[%clk 0:03:00.4]} 3. Nc3 {[%clk 0:03:00.7]} 3... Be7 {[%clk 0:02:58.6]}
4. d4 {[%clk 0:02:59.5]} 4... O-O {[%clk 0:02:57.8]} 5. Bg5 {[%clk 0:02:58.9]}
5... d5 {[%clk 0:02:56.3]} 6. e3 {[%clk 0:02:58.9]} 6... Nbd7 {[%clk 0:02:55.1]}
7. Qc2 {[%clk 0:02:48.9]} 7... b6 {[%clk 0:02:41.6]} 8. cxd5 {[%clk 0:02:46.1]}
8... exd5 {[%clk 0:02:41.2]} 9. O-O-O {[%clk 0:02:45.1]} 9... Bb7 {[%clk
0:02:31.5]} 10. Bd3 {[%clk 0:02:40.2]} 10... h6 {[%clk 0:02:24.8]} 11. h4 {[%clk
0:02:35.2]} 11... c5 {[%clk 0:02:17.2]} 12. g4 {[%clk 0:02:29.7]} 12... Nxg4
{[%clk 0:02:06.4]} 13. Rdg1 {[%clk 0:02:24.6]} 13... h5 {[%clk 0:01:48.2]} 14.
Bf5 {[%clk 0:01:38.4]} 14... Ndf6 {[%clk 0:01:16.7]} 15. Ne5 {[%clk 0:01:23.7]}
15... cxd4 {[%clk 0:01:08.6]} 16. exd4 {[%clk 0:01:20.3]} 16... Nxe5 {[%clk
0:01:00.4]} 17. dxe5 {[%clk 0:01:18]} 17... Ne4 {[%clk 0:01:00.9]} 18. Bh6
{[%clk 0:00:57.3]} 18... g6 {[%clk 0:00:51.5]} 19. e6 {[%clk 0:00:39.4]} 19...
fxe6 {[%clk 0:00:20.4]} 20. Bxg6 {[%clk 0:00:33.7]} 20... Rf6 {[%clk 0:00:15.3]}
21. Bxe4+ {[%clk 0:00:29.7]} 21... Kf7 {[%clk 0:00:15.9]} 22. Bg6+ {[%clk
0:00:27.8]} 22... Kg8 {[%clk 0:00:16.1]} 23. Bxh5+ {[%clk 0:00:23.2]} 23... Kh8
{[%clk 0:00:14.5]} 24. Bg7+ {[%clk 0:00:23.3]} 1-0

[Event "*** Titled Tuesday Blitz"]
[Site "Chess.com"]
[Date "2020.12.29"]
[Round "7"]
[White "EdmundPlayer"]
[Black "The_filthy"]
[Result "0-1"]
[WhiteElo "2196"]
[BlackElo "2301"]
[TimeControl "180+1"]
[EndTime "11:16:07 PST"]
[Termination "The_filthy won by checkmate"]

1. e4 {[%clk 0:03:00.9]} 1... d5 {[%clk 0:02:59.8]} 2. exd5 {[%clk 0:03:00.2]}
2... Qxd5 {[%clk 0:03:00.7]} 3. Nc3 {[%clk 0:02:58.8]} 3... Qe6+ {[%clk
0:03:00.8]} 4. Be2 {[%clk 0:02:54.1]} 4... Qg6 {[%clk 0:03:00.9]} 5. Bf3 {[%clk
0:02:43.6]} 5... Nc6 {[%clk 0:03:00.5]} 6. Nge2 {[%clk 0:02:38]} 6... Bf5 {[%clk
0:02:59.4]} 7. d3 {[%clk 0:02:33.2]} 7... e5 {[%clk 0:02:57.6]} 8. Ng3 {[%clk
0:02:28.4]} 8... Bd7 {[%clk 0:02:53.4]} 9. O-O {[%clk 0:02:25]} 9... O-O-O
{[%clk 0:02:52]} 10. Re1 {[%clk 0:02:06]} 10... f5 {[%clk 0:02:44.3]} 11. Bh5
{[%clk 0:01:31.4]} 11... Qe6 {[%clk 0:02:37.7]} 12. f4 {[%clk 0:01:28.5]} 12...
Bc5+ {[%clk 0:02:31]} 13. Kh1 {[%clk 0:01:28.1]} 13... Nf6 {[%clk 0:02:24.3]}
14. Bf3 {[%clk 0:01:20.4]} 14... Ng4 {[%clk 0:01:52.2]} 15. Bxg4 {[%clk
0:01:06.5]} 15... fxg4 {[%clk 0:01:49.7]} 16. fxe5 {[%clk 0:00:58.6]} 16... h5
{[%clk 0:01:47.8]} 17. Nge4 {[%clk 0:00:37.5]} 17... Bb6 {[%clk 0:01:43.9]} 18.
Ng5 {[%clk 0:00:34.8]} 18... Qg6 {[%clk 0:01:43.1]} 19. e6 {[%clk 0:00:12.2]}
19... Be8 {[%clk 0:01:42.9]} 20. Nce4 {[%clk 0:00:09.4]} 20... Ne5 {[%clk
0:01:33.8]} 21. Bf4 {[%clk 0:00:09.3]} 21... Nc6 {[%clk 0:01:26]} 22. Qd2 {[%clk
0:00:08.8]} 22... h4 {[%clk 0:01:25.2]} 23. h3 {[%clk 0:00:07]} 23... gxh3
{[%clk 0:01:23.5]} 24. gxh3 {[%clk 0:00:07.9]} 24... Nd4 {[%clk 0:01:21]} 25. c3
{[%clk 0:00:07]} 25... Nf5 {[%clk 0:01:10.5]} 26. d4 {[%clk 0:00:06]} 26... Bc6
{[%clk 0:01:08.8]} 27. Re2 {[%clk 0:00:03.6]} 27... Kb8 {[%clk 0:01:04.6]} 28.
Rg2 {[%clk 0:00:03]} 28... Ng3+ {[%clk 0:01:03.8]} 29. Bxg3 {[%clk 0:00:01.9]}
29... hxg3 {[%clk 0:01:03.6]} 30. Rxg3 {[%clk 0:00:02.8]} 30... Bxe4+ {[%clk
0:01:02.7]} 31. Nxe4 {[%clk 0:00:02]} 31... Qxe4+ {[%clk 0:01:02.9]} 32. Kh2
{[%clk 0:00:02.9]} 32... Qxe6 {[%clk 0:01:01.6]} 33. Rag1 {[%clk 0:00:03.8]}
33... c6 {[%clk 0:00:58.6]} 34. Rxg7 {[%clk 0:00:04.4]} 34... Qxh3# {[%clk
0:00:56.4]} 0-1

[Event "*** Titled Tuesday Blitz"]
[Site "Chess.com"]
[Date "2020.12.29"]
[Round "7"]
[White "Chernobay_Artem"]
[Black "kleopl"]
[Result "0-1"]
[WhiteElo "2619"]
[BlackElo "2475"]
[TimeControl "180+1"]
[EndTime "11:16:15 PST"]
[Termination "kleopl won by resignation"]

1. d4 {[%clk 0:02:59.6]} 1... d6 {[%clk 0:02:58.6]} 2. c4 {[%clk 0:03:00.1]}
2... e5 {[%clk 0:02:58.5]} 3. Nf3 {[%clk 0:02:55.3]} 3... exd4 {[%clk
0:02:57.5]} 4. Nxd4 {[%clk 0:02:53.6]} 4... g6 {[%clk 0:02:57.6]} 5. g3 {[%clk
0:02:38.6]} 5... Bg7 {[%clk 0:02:57.5]} 6. Bg2 {[%clk 0:02:38.7]} 6... Ne7
{[%clk 0:02:57.6]} 7. O-O {[%clk 0:02:21.4]} 7... O-O {[%clk 0:02:55.5]} 8. Nc3
{[%clk 0:02:15.1]} 8... Nbc6 {[%clk 0:02:54.9]} 9. Nc2 {[%clk 0:02:04.2]} 9...
Be6 {[%clk 0:02:53.1]} 10. Ne3 {[%clk 0:01:48.6]} 10... Qd7 {[%clk 0:02:50.9]}
11. Ned5 {[%clk 0:01:36.3]} 11... Rac8 {[%clk 0:02:44.7]} 12. Bg5 {[%clk
0:01:20]} 12... f6 {[%clk 0:02:37.8]} 13. Be3 {[%clk 0:01:14.4]} 13... a5 {[%clk
0:02:30.7]} 14. Nb5 {[%clk 0:01:05.6]} 14... Rf7 {[%clk 0:02:16.1]} 15. Bd2
{[%clk 0:01:04.4]} 15... b6 {[%clk 0:02:01.2]} 16. Bc3 {[%clk 0:01:02.9]} 16...
Ne5 {[%clk 0:01:42.3]} 17. b3 {[%clk 0:00:53.5]} 17... Bxd5 {[%clk 0:01:33.9]}
18. Bxd5 {[%clk 0:00:22.1]} 18... Nxd5 {[%clk 0:01:33.6]} 19. Bxe5 {[%clk
0:00:20.3]} 19... fxe5 {[%clk 0:01:27.8]} 20. Na7 {[%clk 0:00:19.6]} 20... Nc3
{[%clk 0:01:18.3]} 21. Qc2 {[%clk 0:00:17.5]} 21... Ra8 {[%clk 0:01:18.3]} 22.
Qxc3 {[%clk 0:00:18]} 22... Rxa7 {[%clk 0:01:14.9]} 23. Qc2 {[%clk 0:00:17.3]}
23... Ra8 {[%clk 0:01:13.5]} 24. Rad1 {[%clk 0:00:16.8]} 24... Raf8 {[%clk
0:01:12.9]} 25. e3 {[%clk 0:00:16.9]} 25... Qc6 {[%clk 0:01:10.4]} 26. Rd5
{[%clk 0:00:16]} 26... Qd7 {[%clk 0:01:04.8]} 27. Rfd1 {[%clk 0:00:15.6]} 27...
Qg4 {[%clk 0:00:59.2]} 28. R1d2 {[%clk 0:00:14.3]} 28... Bh6 {[%clk 0:00:58]}
29. Qd3 {[%clk 0:00:12.2]} 29... Qf5 {[%clk 0:00:56.5]} 30. Qe2 {[%clk
0:00:10.7]} 30... Qb1+ {[%clk 0:00:54.1]} 31. Kg2 {[%clk 0:00:09.7]} 31... Rxf2+
{[%clk 0:00:46.1]} 32. Qxf2 {[%clk 0:00:09.8]} 32... Qe4+ {[%clk 0:00:45.7]} 0-1

[Event "*** Titled Tuesday Blitz"]
[Site "Chess.com"]
[Date "2020.12.29"]
[Round "7"]
[White "Heineccius"]
[Black "tylityli"]
[Result "1-0"]
[WhiteElo "2573"]
[BlackElo "2361"]
[TimeControl "180+1"]
[EndTime "11:16:15 PST"]
[Termination "Heineccius won by resignation"]

1. d4 {[%clk 0:03:00.9]} 1... Nf6 {[%clk 0:02:55.4]} 2. c4 {[%clk 0:03:00.7]}
2... e6 {[%clk 0:02:55.1]} 3. Nc3 {[%clk 0:03:00.2]} 3... Bb4 {[%clk 0:02:54.6]}
4. g3 {[%clk 0:03:00.1]} 4... O-O {[%clk 0:02:53]} 5. Bg2 {[%clk 0:02:59.6]}
5... Nc6 {[%clk 0:02:53.3]} 6. Nf3 {[%clk 0:02:58.4]} 6... d6 {[%clk 0:02:53.7]}
7. Qc2 {[%clk 0:02:44.7]} 7... e5 {[%clk 0:02:50.4]} 8. dxe5 {[%clk 0:02:43.1]}
8... dxe5 {[%clk 0:02:39.9]} 9. O-O {[%clk 0:02:42.3]} 9... Bxc3 {[%clk
0:02:36.4]} 10. Qxc3 {[%clk 0:02:39.4]} 10... Qe7 {[%clk 0:02:33.9]} 11. Rd1
{[%clk 0:02:23.2]} 11... h6 {[%clk 0:02:25.2]} 12. b3 {[%clk 0:02:22.5]} 12...
Bg4 {[%clk 0:02:21.4]} 13. Bb2 {[%clk 0:01:55]} 13... Rfe8 {[%clk 0:01:53]} 14.
h3 {[%clk 0:01:40.5]} 14... Bxf3 {[%clk 0:01:37.3]} 15. Bxf3 {[%clk 0:01:35.8]}
15... Nd4 {[%clk 0:01:36.2]} 16. Rd2 {[%clk 0:01:32.8]} 16... Nxf3+ {[%clk
0:01:34.6]} 17. exf3 {[%clk 0:01:27.5]} 17... Qe6 {[%clk 0:01:13.4]} 18. Kh2
{[%clk 0:01:25.6]} 18... Qf5 {[%clk 0:00:54.2]} 19. Re1 {[%clk 0:01:22.2]} 19...
e4 {[%clk 0:00:48.5]} 20. fxe4 {[%clk 0:00:49.3]} 20... Rxe4 {[%clk 0:00:45.8]}
21. Rxe4 {[%clk 0:00:45.9]} 21... Qxe4 {[%clk 0:00:45.6]} 22. Rd4 {[%clk
0:00:45.2]} 22... Qe2 {[%clk 0:00:30]} 23. Rf4 {[%clk 0:00:40.5]} 23... Qe6
{[%clk 0:00:25.1]} 24. Qf3 {[%clk 0:00:34.7]} 24... c6 {[%clk 0:00:23.5]} 25.
Bxf6 {[%clk 0:00:32.7]} 25... gxf6 {[%clk 0:00:22.1]} 26. Rxf6 {[%clk
0:00:33.6]} 26... Qd7 {[%clk 0:00:15.1]} 27. Rxh6 {[%clk 0:00:31.6]} 27... Re8
{[%clk 0:00:13.8]} 28. Qf6 {[%clk 0:00:30.4]} 1-0